fUSD/lending_fUSD_20260614
["ID","MTS","AMOUNT","RATE_DAILY","PERIOD"]
[425050357,1781447447000,-841.95,0.00027397,2]
[425050352,1781447447000,-500.0,0.00027397,2]
[425050356,1781447447000,-500.0,0.00027397,2]
[425050361,1781447447000,-500.0,0.00027397,2]
[425050362,1781447447000,-186.21885896,0.00027397,2]
[425050358,1781447447000,-500.0,0.00027397,2]
[425050359,1781447447000,-500.0,0.00027397,2]
[425050360,1781447447000,-500.0,0.00027397,2]
[425050363,1781447447000,-500.0,0.00027397,2]
[425050366,1781447447000,-500.0,0.00027397,2]
[425050346,1781447447000,-899.88,0.00027397,2]
[425050354,1781447447000,-1398.15,0.00027397,2]
[425050337,1781447447000,-500.0,0.00027397,2]
[425050323,1781447447000,-500.0,0.00027397,2]
[425050334,1781447447000,-500.0,0.00027397,2]
[425050364,1781447447000,-500.0,0.00027397,2]
[425050308,1781447447000,-500.0,0.00027397,2]
[425050309,1781447447000,-1015.25,0.00027397,2]
[425050312,1781447447000,-500.0,0.00027397,2]
[425050310,1781447447000,-354.38475167,0.00027397,2]
[425050314,1781447447000,-500.0,0.00027397,2]
[425050315,1781447447000,-500.0,0.00027397,2]
[425050313,1781447447000,-664.01,0.00027397,2]
[425050311,1781447447000,-500.0,0.00027397,2]
[425050316,1781447447000,-1047.49,0.00027397,2]
[425050325,1781447447000,-500.0,0.00027397,2]
[425050318,1781447447000,-500.0,0.00027397,2]
[425050317,1781447447000,-500.0,0.00027397,2]
[425050319,1781447447000,-500.0,0.00027397,2]
[425050322,1781447447000,-500.0,0.00027397,2]
[425050324,1781447447000,-500.0,0.00027397,2]
[425050320,1781447447000,-500.0,0.00027397,2]
[425050321,1781447447000,-500.0,0.00027397,2]
[425050327,1781447447000,-500.0,0.00027397,2]
[425050328,1781447447000,-500.0,0.00027397,2]
[425050329,1781447447000,-1037.86,0.00027397,2]
[425050330,1781447447000,-500.0,0.00027397,2]
[425050331,1781447447000,-500.0,0.00027397,2]
[425050336,1781447447000,-766.55,0.00027397,2]
[425050333,1781447447000,-2107.14,0.00027397,2]
[425050335,1781447447000,-1207.41,0.00027397,2]
[425050332,1781447447000,-773.85,0.00027397,2]
[425050338,1781447447000,-500.0,0.00027397,2]
[425050371,1781447447000,-500.0,0.00027397,2]
[425050326,1781447447000,-500.0,0.00027397,2]
[425050373,1781447447000,-500.0,0.00027397,2]
[425050413,1781447447000,-500.0,0.00027397,2]
[425050415,1781447447000,-500.0,0.00027397,2]
[425050405,1781447447000,-500.0,0.00027397,2]
[425050407,1781447447000,-500.0,0.00027397,2]
[425050406,1781447447000,-556.37,0.00027397,2]
[425050414,1781447447000,-790.09,0.00027397,2]
[425050404,1781447447000,-500.0,0.00027397,2]
[425050409,1781447447000,-500.0,0.00027397,2]
[425050412,1781447447000,-500.0,0.00027397,2]
[425050408,1781447447000,-500.0,0.00027397,2]
[425050411,1781447447000,-500.0,0.00027397,2]
[425050410,1781447447000,-500.0,0.00027397,2]
[425050403,1781447447000,-500.0,0.00027397,2]
[425050418,1781447447000,-520.69,0.00027397,2]
[425050423,1781447447000,-500.0,0.00027397,2]
[425050417,1781447447000,-534.02,0.00027397,2]
[425050425,1781447447000,-500.0,0.00027397,2]
[425050432,1781447447000,-500.0,0.00027397,2]
[425050422,1781447447000,-500.0,0.00027397,2]
[425050429,1781447447000,-500.0,0.00027397,2]
[425050424,1781447447000,-500.0,0.00027397,2]
[425050421,1781447447000,-648.3,0.00027397,2]
[425050427,1781447447000,-500.0,0.00027397,2]
[425050428,1781447447000,-500.0,0.00027397,2]
[425050430,1781447447000,-500.0,0.00027397,2]
[425050431,1781447447000,-500.0,0.00027397,2]
[425050420,1781447447000,-1217.4,0.00027397,2]
[425050399,1781447447000,-500.0,0.00027397,2]
[425050426,1781447447000,-500.0,0.00027397,2]
[425050401,1781447447000,-500.0,0.00027397,2]
[425050397,1781447447000,-500.0,0.00027397,2]
[425050368,1781447447000,-554.77,0.00027397,2]
[425050370,1781447447000,-607.25,0.00027397,2]
[425050372,1781447447000,-638.31,0.00027397,2]
[425050369,1781447447000,-500.0,0.00027397,2]
[425050375,1781447447000,-1000.0,0.00027397,2]
[425050374,1781447447000,-510.28,0.00027397,2]
[425050383,1781447447000,-806.88,0.00027397,2]
[425050387,1781447447000,-500.0,0.00027397,2]
[425050385,1781447447000,-500.0,0.00027397,2]
[425050384,1781447447000,-500.0,0.00027397,2]
[425050386,1781447447000,-544.6,0.00027397,2]
[425050376,1781447447000,-500.0,0.00027397,2]
[425050381,1781447447000,-500.0,0.00027397,2]
[425050367,1781447447000,-1132.03,0.00027397,2]
[425050377,1781447447000,-500.0,0.00027397,2]
[425050382,1781447447000,-283.18579009,0.00027397,2]
[425050396,1781447447000,-500.0,0.00027397,2]
[425050400,1781447447000,-500.0,0.00027397,2]
[425050402,1781447447000,-815.68,0.00027397,2]
[425050393,1781447447000,-500.0,0.00027397,2]
[425050390,1781447447000,-2153.84,0.00027397,2]
[425050388,1781447447000,-500.0,0.00027397,2]
[425050392,1781447447000,-866.85,0.00027397,2]
[425050380,1781447447000,-853.99,0.00027397,2]
[425050378,1781447447000,-500.0,0.00027397,2]
[425050391,1781447447000,-500.0,0.00027397,2]
[425050379,1781447447000,-250.00434921,0.00027397,2]
[425050398,1781447447000,-500.0,0.00027397,2]
[425050471,1781447448000,-500.0,0.00027397,2]
[425050462,1781447448000,-723.54,0.00027397,2]
[425050455,1781447448000,-500.0,0.00027397,2]
[425050465,1781447448000,-500.0,0.00027397,2]
[425050456,1781447448000,-500.0,0.00027397,2]
[425050460,1781447448000,-500.0,0.00027397,2]
[425050461,1781447448000,-222.74019446,0.00027397,2]
[425050458,1781447448000,-500.0,0.00027397,2]
[425050459,1781447448000,-689.06,0.00027397,2]
[425050469,1781447448000,-500.0,0.00027397,2]
[425050473,1781447448000,-500.0,0.00027397,2]
[425050470,1781447448000,-784.28,0.00027397,2]
[425050474,1781447448000,-500.0,0.00027397,2]
[425050475,1781447448000,-559.91,0.00027397,2]
[425050466,1781447448000,-577.02400593,0.00027397,2]
[425050476,1781447448000,-500.0,0.00027397,2]
[425050478,1781447448000,-500.0,0.00027397,2]
[425050479,1781447448000,-500.0,0.00027397,2]
[425050477,1781447448000,-500.0,0.00027397,2]
[425050480,1781447448000,-500.0,0.00027397,2]
[425050482,1781447448000,-500.0,0.00027397,2]
[425050472,1781447448000,-872.27,0.00027397,2]
[425050464,1781447448000,-500.0,0.00027397,2]
[425050450,1781447448000,-500.0,0.00027397,2]
[425050468,1781447448000,-500.0,0.00027397,2]
[425050483,1781447448000,-500.0,0.00027397,2]
[425050440,1781447448000,-500.0,0.00027397,2]
[425050433,1781447448000,-500.0,0.00027397,2]
[425050442,1781447448000,-448.08185347,0.00027397,2]
[425050438,1781447448000,-1022.53,0.00027397,2]
[425050435,1781447448000,-500.0,0.00027397,2]
[425050441,1781447448000,-500.0,0.00027397,2]
[425050434,1781447448000,-500.0,0.00027397,2]
[425050437,1781447448000,-543.72,0.00027397,2]
[425050436,1781447448000,-500.0,0.00027397,2]
[425050467,1781447448000,-500.0,0.00027397,2]
[425050439,1781447448000,-597.42,0.00027397,2]
[425050447,1781447448000,-1193.0,0.00027397,2]
[425050449,1781447448000,-500.0,0.00027397,2]
[425050452,1781447448000,-500.0,0.00027397,2]
[425050454,1781447448000,-1254.7,0.00027397,2]
[425050446,1781447448000,-500.0,0.00027397,2]
[425050444,1781447448000,-500.0,0.00027397,2]
[425050448,1781447448000,-573.76,0.00027397,2]
[425050451,1781447448000,-500.0,0.00027397,2]
[425050453,1781447448000,-500.0,0.00027397,2]
[425050463,1781447448000,-1746.88,0.00027397,2]
[425050445,1781447448000,-500.0,0.00027397,2]
[425050443,1781447448000,-500.0,0.00027397,2]
[425050486,1781447448000,-500.0,0.00027397,2]
[425050481,1781447448000,-500.0,0.00027397,2]
[425050512,1781447448000,-714.38,0.00027397,2]
[425050522,1781447448000,-500.0,0.00027397,2]
[425050519,1781447448000,-536.09,0.00027397,2]
[425050517,1781447448000,-500.0,0.00027397,2]
[425050518,1781447448000,-500.0,0.00027397,2]
[425050515,1781447448000,-500.0,0.00027397,2]
[425050520,1781447448000,-611.86,0.00027397,2]
[425050521,1781447448000,-1220.66,0.00027397,2]
[425050516,1781447448000,-529.52,0.00027397,2]
[425050524,1781447448000,-500.0,0.00027397,2]
[425050514,1781447448000,-1199.94,0.00027397,2]
[425050532,1781447448000,-500.0,0.00027397,2]
[425050529,1781447448000,-500.0,0.00027397,2]
[425050534,1781447448000,-500.0,0.00027397,2]
[425050525,1781447448000,-1992.83,0.00027397,2]
[425050533,1781447448000,-500.0,0.00027397,2]
[425050527,1781447448000,-1285.7,0.00027397,2]
[425050526,1781447448000,-500.0,0.00027397,2]
[425050530,1781447448000,-694.6,0.00027397,2]
[425050531,1781447448000,-500.0,0.00027397,2]
[425050536,1781447448000,-694.97,0.00027397,2]
[425050484,1781447448000,-639.31,0.00027397,2]
[425050528,1781447448000,-500.0,0.00027397,2]
[425050513,1781447448000,-500.0,0.00027397,2]
[425050535,1781447448000,-500.0,0.00027397,2]
[425050511,1781447448000,-500.0,0.00027397,2]
[425050485,1781447448000,-623.88,0.00027397,2]
[425050523,1781447448000,-581.3144079,0.00027397,2]
[425050488,1781447448000,-500.0,0.00027397,2]
[425050489,1781447448000,-533.2,0.00027397,2]
[425050498,1781447448000,-566.53,0.00027397,2]
[425050487,1781447448000,-504.6,0.00027397,2]
[425050500,1781447448000,-500.0,0.00027397,2]
[425050490,1781447448000,-715.69,0.00027397,2]
[425050495,1781447448000,-892.45,0.00027397,2]
[425050491,1781447448000,-1046.11,0.00027397,2]
[425050492,1781447448000,-500.0,0.00027397,2]
[425050499,1781447448000,-500.0,0.00027397,2]
[425050510,1781447448000,-500.0,0.00027397,2]
[425050497,1781447448000,-500.0,0.00027397,2]
[425050504,1781447448000,-500.0,0.00027397,2]
[425050506,1781447448000,-500.0,0.00027397,2]
[425050505,1781447448000,-500.0,0.00027397,2]
[425050503,1781447448000,-500.0,0.00027397,2]
[425050501,1781447448000,-500.0,0.00027397,2]
[425050507,1781447448000,-500.0,0.00027397,2]
[425050509,1781447448000,-500.0,0.00027397,2]
[425050508,1781447448000,-500.0,0.00027397,2]
[425050493,1781447448000,-500.0,0.00027397,2]
[425050577,1781447449000,-500.0,0.00027397,2]
[425050566,1781447449000,-500.0,0.00027397,2]
[425050581,1781447449000,-500.0,0.00027397,2]
[425050580,1781447449000,-500.0,0.00027397,2]
[425050575,1781447449000,-500.0,0.00027397,2]
[425050579,1781447449000,-500.0,0.00027397,2]
[425050567,1781447449000,-752.56,0.00027397,2]
[425050572,1781447449000,-500.0,0.00027397,2]
[425050571,1781447449000,-500.0,0.00027397,2]
[425050569,1781447449000,-500.0,0.00027397,2]
[425050573,1781447449000,-500.0,0.00027397,2]
[425050578,1781447449000,-1362.07,0.00027397,2]
[425050576,1781447449000,-500.0,0.00027397,2]
[425050587,1781447449000,-500.0,0.00027397,2]
[425050582,1781447449000,-500.0,0.00027397,2]
[425050584,1781447449000,-1214.87,0.00027397,2]
[425050594,1781447449000,-500.0,0.00027397,2]
[425050596,1781447449000,-500.0,0.00027397,2]
[425050595,1781447449000,-556.38,0.00027397,2]
[425050583,1781447449000,-638.12066126,0.00027397,2]
[425050585,1781447449000,-712.15,0.00027397,2]
[425050592,1781447449000,-710.6,0.00027397,2]
[425050593,1781447449000,-500.0,0.00027397,2]
[425050586,1781447449000,-500.0,0.00027397,2]
[425050589,1781447449000,-500.0,0.00027397,2]
[425050588,1781447449000,-658.12,0.00027397,2]
[425050565,1781447449000,-500.0,0.00027397,2]
[425050574,1781447449000,-500.0,0.00027397,2]
[425050568,1781447449000,-1794.38,0.00027397,2]
[425050540,1781447449000,-681.48,0.00027397,2]
[425050562,1781447449000,-500.0,0.00027397,2]
[425050590,1781447449000,-500.0,0.00027397,2]
[425050543,1781447449000,-1019.53,0.00027397,2]
[425050546,1781447449000,-500.0,0.00027397,2]
[425050542,1781447449000,-500.0,0.00027397,2]
[425050538,1781447449000,-638.67,0.00027397,2]
[425050545,1781447449000,-500.0,0.00027397,2]
[425050537,1781447449000,-577.76,0.00027397,2]
[425050544,1781447449000,-500.0,0.00027397,2]
[425050539,1781447449000,-500.0,0.00027397,2]
[425050541,1781447449000,-500.0,0.00027397,2]
[425050547,1781447449000,-500.0,0.00027397,2]
[425050550,1781447449000,-500.0,0.00027397,2]
[425050553,1781447449000,-500.0,0.00027397,2]
[425050551,1781447449000,-770.14,0.00027397,2]
[425050554,1781447449000,-500.0,0.00027397,2]
[425050556,1781447449000,-500.0,0.00027397,2]
[425050552,1781447449000,-606.2,0.00027397,2]
[425050549,1781447449000,-500.0,0.00027397,2]
[425050555,1781447449000,-648.66,0.00027397,2]
[425050548,1781447449000,-500.0,0.00027397,2]
[425050557,1781447449000,-1236.08,0.00027397,2]
[425050558,1781447449000,-500.0,0.00027397,2]
[425050560,1781447449000,-500.0,0.00027397,2]
[425050563,1781447449000,-1086.15,0.00027397,2]
[425050570,1781447449000,-500.0,0.00027397,2]
[425050561,1781447449000,-500.0,0.00027397,2]
[425050559,1781447449000,-500.0,0.00027397,2]
[425050564,1781447449000,-158.40920122,0.00027397,2]
[425050591,1781447449000,-500.0,0.00027397,2]
[425050607,1781447449000,-500.0,0.00027397,2]
[425050599,1781447449000,-500.0,0.00027397,2]
[425050630,1781447449000,-500.0,0.00027397,2]
[425050632,1781447449000,-500.0,0.00027397,2]
[425050631,1781447449000,-500.0,0.00027397,2]
[425050634,1781447449000,-747.07,0.00027397,2]
[425050644,1781447449000,-500.0,0.00027397,2]
[425050633,1781447449000,-500.0,0.00027397,2]
[425050636,1781447449000,-1199.11,0.00027397,2]
[425050635,1781447449000,-500.0,0.00027397,2]
[425050641,1781447449000,-500.0,0.00027397,2]
[425050640,1781447449000,-500.0,0.00027397,2]
[425050638,1781447449000,-500.0,0.00027397,2]
[425050637,1781447449000,-500.0,0.00027397,2]
[425050639,1781447449000,-579.71,0.00027397,2]
[425050643,1781447449000,-500.0,0.00027397,2]
[425050642,1781447449000,-500.0,0.00027397,2]
[425050645,1781447449000,-1016.47,0.00027397,2]
[425050650,1781447449000,-519.48,0.00027397,2]
[425050649,1781447449000,-500.0,0.00027397,2]
[425050656,1781447449000,-500.0,0.00027397,2]
[425050648,1781447449000,-500.0,0.00027397,2]
[425050647,1781447449000,-1038.13,0.00027397,2]
[425050646,1781447449000,-500.0,0.00027397,2]
[425050652,1781447449000,-500.0,0.00027397,2]
[425050651,1781447449000,-856.87,0.00027397,2]
[425050654,1781447449000,-597.59,0.00027397,2]
[425050653,1781447449000,-565.44,0.00027397,2]
[425050597,1781447449000,-932.78,0.00027397,2]
[425050628,1781447449000,-500.0,0.00027397,2]
[425050624,1781447449000,-500.0,0.00027397,2]
[425050655,1781447449000,-500.0,0.00027397,2]
[425050629,1781447449000,-500.0,0.00027397,2]
[425050627,1781447449000,-500.0,0.00027397,2]
[425050600,1781447449000,-1530.48,0.00027397,2]
[425050604,1781447449000,-500.0,0.00027397,2]
[425050605,1781447449000,-500.0,0.00027397,2]
[425050608,1781447449000,-500.0,0.00027397,2]
[425050598,1781447449000,-500.0,0.00027397,2]
[425050601,1781447449000,-500.0,0.00027397,2]
[425050602,1781447449000,-500.0,0.00027397,2]
[425050603,1781447449000,-500.0,0.00027397,2]
[425050657,1781447449000,-1068.73,0.00027397,2]
[425050610,1781447449000,-500.0,0.00027397,2]
[425050620,1781447449000,-500.0,0.00027397,2]
[425050609,1781447449000,-500.0,0.00027397,2]
[425050606,1781447449000,-500.0,0.00027397,2]
[425050611,1781447449000,-500.0,0.00027397,2]
[425050613,1781447449000,-836.13,0.00027397,2]
[425050623,1781447449000,-500.0,0.00027397,2]
[425050626,1781447449000,-500.0,0.00027397,2]
[425050625,1781447449000,-987.41,0.00027397,2]
[425050621,1781447449000,-500.0,0.00027397,2]
[425050618,1781447449000,-1329.36,0.00027397,2]
[425050622,1781447449000,-578.24,0.00027397,2]
[425050619,1781447449000,-500.0,0.00027397,2]
[425050617,1781447449000,-500.0,0.00027397,2]
[425050616,1781447449000,-500.0,0.00027397,2]
[425050615,1781447449000,-500.0,0.00027397,2]
[425050612,1781447449000,-500.0,0.00027397,2]
[425050614,1781447449000,-500.0,0.00027397,2]
[425050698,1781447450000,-325.88521466,0.00027397,2]
[425050696,1781447450000,-1150.58,0.00027397,2]
[425050693,1781447450000,-500.0,0.00027397,2]
[425050695,1781447450000,-500.0,0.00027397,2]
[425050692,1781447450000,-500.0,0.00027397,2]
[425050688,1781447450000,-500.0,0.00027397,2]
[425050690,1781447450000,-500.0,0.00027397,2]
[425050689,1781447450000,-815.38,0.00027397,2]
[425050687,1781447450000,-729.66,0.00027397,2]
[425050694,1781447450000,-500.0,0.00027397,2]
[425050685,1781447450000,-500.0,0.00027397,2]
[425050702,1781447450000,-500.0,0.00027397,2]
[425050699,1781447450000,-500.0,0.00027397,2]
[425050700,1781447450000,-500.0,0.00027397,2]
[425050701,1781447450000,-532.23,0.00027397,2]
[425050704,1781447450000,-657.48,0.00027397,2]
[425050708,1781447450000,-500.0,0.00027397,2]
[425050710,1781447450000,-2048.23,0.00027397,2]
[425050707,1781447450000,-500.0,0.00027397,2]
[425050703,1781447450000,-500.0,0.00027397,2]
[425050705,1781447450000,-648.15,0.00027397,2]
[425050706,1781447450000,-564.84,0.00027397,2]
[425050686,1781447450000,-577.92501557,0.00027397,2]
[425050709,1781447450000,-2000.0,0.00027397,2]
[425050697,1781447450000,-500.0,0.00027397,2]
[425050684,1781447450000,-434.80829545,0.00027397,2]
[425050670,1781447450000,-500.0,0.00027397,2]
[425050683,1781447450000,-500.0,0.00027397,2]
[425050711,1781447450000,-500.0,0.00027397,2]
[425050658,1781447450000,-500.0,0.00027397,2]
[425050667,1781447450000,-675.87,0.00027397,2]
[425050666,1781447450000,-944.34,0.00027397,2]
[425050659,1781447450000,-657.3,0.00027397,2]
[425050668,1781447450000,-500.0,0.00027397,2]
[425050665,1781447450000,-500.0,0.00027397,2]
[425050661,1781447450000,-1514.46,0.00027397,2]
[425050664,1781447450000,-663.09,0.00027397,2]
[425050662,1781447450000,-500.0,0.00027397,2]
[425050660,1781447450000,-500.0,0.00027397,2]
[425050682,1781447450000,-500.0,0.00027397,2]
[425050663,1781447450000,-500.0,0.00027397,2]
[425050674,1781447450000,-500.0,0.00027397,2]
[425050675,1781447450000,-500.0,0.00027397,2]
[425050671,1781447450000,-500.0,0.00027397,2]
[425050678,1781447450000,-500.0,0.00027397,2]
[425050672,1781447450000,-881.04,0.00027397,2]
[425050679,1781447450000,-500.0,0.00027397,2]
[425050676,1781447450000,-642.31,0.00027397,2]
[425050677,1781447450000,-702.19,0.00027397,2]
[425050681,1781447450000,-631.21,0.00027397,2]
[425050680,1781447450000,-845.18,0.00027397,2]
[425050691,1781447450000,-500.0,0.00027397,2]
[425050669,1781447450000,-500.0,0.00027397,2]
[425050712,1781447450000,-2048.23,0.00027397,2]
[425050673,1781447450000,-1042.52,0.00027397,2]
[425050714,1781447450000,-1482.75279655,0.00027397,2]
[425050745,1781447450000,-3250.13,0.00027397,2]
[425050744,1781447450000,-500.0,0.00027397,2]
[425050756,1781447450000,-692.78,0.00027397,2]
[425050755,1781447450000,-500.0,0.00027397,2]
[425050746,1781447450000,-500.0,0.00027397,2]
[425050747,1781447450000,-1539.52,0.00027397,2]
[425050751,1781447450000,-500.0,0.00027397,2]
[425050754,1781447450000,-500.0,0.00027397,2]
[425050749,1781447450000,-500.0,0.00027397,2]
[425050752,1781447450000,-500.0,0.00027397,2]
[425050753,1781447450000,-870.51,0.00027397,2]
[425050738,1781447450000,-500.0,0.00027397,2]
[425050750,1781447450000,-641.52,0.00027397,2]
[425050757,1781447450000,-540.29,0.00027397,2]
[425050758,1781447450000,-500.0,0.00027397,2]
[425050764,1781447450000,-553.44,0.00027397,2]
[425050762,1781447450000,-500.0,0.00027397,2]
[425050761,1781447450000,-743.01,0.00027397,2]
[425050759,1781447450000,-210.34314678,0.00027397,2]
[425050767,1781447450000,-500.0,0.00027397,2]
[425050760,1781447450000,-500.0,0.00027397,2]
[425050763,1781447450000,-1661.43,0.00027397,2]
[425050765,1781447450000,-502.09239286,0.00027397,2]
[425050713,1781447450000,-835.21,0.00027397,2]
[425050748,1781447450000,-500.0,0.00027397,2]
[425050742,1781447450000,-500.0,0.00027397,2]
[425050766,1781447450000,-500.0,0.00027397,2]
[425050737,1781447450000,-500.0,0.00027397,2]
[425050740,1781447450000,-500.0,0.00027397,2]
[425050715,1781447450000,-500.0,0.00027397,2]
[425050716,1781447450000,-500.0,0.00027397,2]
[425050718,1781447450000,-880.78,0.00027397,2]
[425050720,1781447450000,-3014.18,0.00027397,2]
[425050719,1781447450000,-500.0,0.00027397,2]
[425050721,1781447450000,-616.02,0.00027397,2]
[425050731,1781447450000,-543.16,0.00027397,2]
[425050722,1781447450000,-500.0,0.00027397,2]
[425050723,1781447450000,-500.0,0.00027397,2]
[425050726,1781447450000,-500.0,0.00027397,2]
[425050724,1781447450000,-500.0,0.00027397,2]
[425050717,1781447450000,-500.0,0.00027397,2]
[425050727,1781447450000,-500.0,0.00027397,2]
[425050725,1781447450000,-500.0,0.00027397,2]
[425050734,1781447450000,-500.0,0.00027397,2]
[425050741,1781447450000,-500.0,0.00027397,2]
[425050743,1781447450000,-500.0,0.00027397,2]
[425050736,1781447450000,-500.0,0.00027397,2]
[425050739,1781447450000,-1461.98,0.00027397,2]
[425050733,1781447450000,-500.0,0.00027397,2]
[425050732,1781447450000,-869.12,0.00027397,2]
[425050728,1781447450000,-500.0,0.00027397,2]
[425050729,1781447450000,-500.0,0.00027397,2]
[425050730,1781447450000,-500.0,0.00027397,2]
[425050735,1781447450000,-992.68,0.00027397,2]
[425050787,1781447451000,-500.0,0.00027397,2]
[425050786,1781447451000,-500.0,0.00027397,2]
[425050794,1781447451000,-1701.25,0.00027397,2]
[425050793,1781447451000,-674.5,0.00027397,2]
[425050800,1781447451000,-1169.04,0.00027397,2]
[425050796,1781447451000,-592.38,0.00027397,2]
[425050801,1781447451000,-500.0,0.00027397,2]
[425050802,1781447451000,-558.94,0.00027397,2]
[425050797,1781447451000,-500.0,0.00027397,2]
[425050807,1781447451000,-605.88,0.00027397,2]
[425050795,1781447451000,-500.0,0.00027397,2]
[425050799,1781447451000,-614.47,0.00027397,2]
[425050808,1781447451000,-500.0,0.00027397,2]
[425050809,1781447451000,-500.0,0.00027397,2]
[425050805,1781447451000,-500.0,0.00027397,2]
[425050804,1781447451000,-500.0,0.00027397,2]
[425050803,1781447451000,-500.0,0.00027397,2]
[425050784,1781447451000,-500.0,0.00027397,2]
[425050798,1781447451000,-500.0,0.00027397,2]
[425050783,1781447451000,-500.0,0.00027397,2]
[425050777,1781447451000,-500.0,0.00027397,2]
[425050792,1781447451000,-500.0,0.00027397,2]
[425050812,1781447451000,-500.0,0.00027397,2]
[425050768,1781447451000,-920.43,0.00027397,2]
[425050770,1781447451000,-1059.33,0.00027397,2]
[425050780,1781447451000,-698.01,0.00027397,2]
[425050771,1781447451000,-500.0,0.00027397,2]
[425050769,1781447451000,-500.0,0.00027397,2]
[425050772,1781447451000,-509.71,0.00027397,2]
[425050774,1781447451000,-500.0,0.00027397,2]
[425050775,1781447451000,-662.85,0.00027397,2]
[425050773,1781447451000,-500.0,0.00027397,2]
[425050778,1781447451000,-500.0,0.00027397,2]
[425050779,1781447451000,-500.0,0.00027397,2]
[425050776,1781447451000,-605.61,0.00027397,2]
[425050781,1781447451000,-500.0,0.00027397,2]
[425050782,1781447451000,-2667.75,0.00027397,2]
[425050790,1781447451000,-500.0,0.00027397,2]
[425050788,1781447451000,-550.49802569,0.00027397,2]
[425050791,1781447451000,-500.0,0.00027397,2]
[425050789,1781447451000,-500.0,0.00027397,2]
[425050785,1781447451000,-500.0,0.00027397,2]
[425050811,1781447451000,-327.77757106,0.00027397,2]
[425050810,1781447451000,-500.0,0.00027397,2]
[425050813,1781447451000,-500.0,0.00027397,2]
[425050837,1781447451000,-1157.66,0.00027397,2]
[425050835,1781447451000,-500.0,0.00027397,2]
[425050839,1781447451000,-842.22,0.00027397,2]
[425050842,1781447451000,-500.0,0.00027397,2]
[425050841,1781447451000,-543.63,0.00027397,2]
[425050840,1781447451000,-500.0,0.00027397,2]
[425050843,1781447451000,-500.0,0.00027397,2]
[425050845,1781447451000,-500.0,0.00027397,2]
[425050846,1781447451000,-500.0,0.00027397,2]
[425050847,1781447451000,-500.0,0.00027397,2]
[425050844,1781447451000,-1675.9,0.00027397,2]
[425050850,1781447451000,-703.84,0.00027397,2]
[425050853,1781447451000,-500.0,0.00027397,2]
[425050848,1781447451000,-1000.0,0.00027397,2]
[425050851,1781447451000,-500.0,0.00027397,2]
[425050855,1781447451000,-5751.63,0.00027397,2]
[425050852,1781447451000,-500.0,0.00027397,2]
[425050854,1781447451000,-1427.79,0.00027397,2]
[425050806,1781447451000,-500.0,0.00027397,2]